fUST/lending_fUST_20250901
["ID","MTS","AMOUNT","RATE_DAILY","PERIOD"]
[382523806,1756656662988,-480.0,0.00018081,2]
[382523808,1756656662997,-480.0,0.00018081,2]
[382523810,1756656663007,-368.24939402,0.00018081,2]
[382523812,1756656663016,-480.0,0.00018081,2]
[382523814,1756656663026,-480.0,0.00018081,2]
[382523815,1756656663036,-735.81,0.00018081,2]
[382523817,1756656663046,-480.0,0.00018081,2]
[382523820,1756656663056,-480.0,0.00018081,2]
[382523822,1756656663066,-500.0,0.00018081,2]
[382523824,1756656663077,-587.93,0.00018081,2]
[382523826,1756656663087,-480.0,0.00018081,2]
[382523828,1756656663097,-480.0,0.00018081,2]
[382523830,1756656663108,-317.78136051,0.00018081,2]
[382523832,1756656663118,-480.0,0.00018081,2]
[382523834,1756656663128,-480.0,0.00018081,2]
[382523836,1756656663138,-480.0,0.00018081,2]
[382523838,1756656663148,-480.0,0.00018081,2]
[382523840,1756656663158,-480.0,0.00018081,2]
[382523842,1756656663168,-953.54,0.00018081,2]
[382523844,1756656663178,-480.0,0.00018081,2]
[382523846,1756656663188,-480.0,0.00018081,2]
[382523848,1756656663198,-482.4887696,0.00018081,2]
[382523850,1756656663209,-1041.88,0.00018081,2]
[382523852,1756656663219,-151.0,0.00018081,2]
[382523854,1756656663228,-480.0,0.00018081,2]
[382523856,1756656663238,-1836.3,0.00018081,2]
[382523858,1756656663248,-151.0,0.00018081,2]
[382523860,1756656663258,-413.11432787,0.00018081,2]
[382523862,1756656663268,-495.55,0.00018081,2]
[382523864,1756656663279,-533.7,0.00018081,2]
[382523866,1756656663289,-501.8,0.00018081,2]
[382523868,1756656663300,-289.739314,0.00018081,2]
[382523869,1756656663310,-1076.45,0.00018081,2]
[382523870,1756656663320,-535.76,0.00018081,2]
[382523871,1756656663330,-505.86,0.00018081,2]
[382523872,1756656663340,-513.94,0.00018081,2]
[382523873,1756656663350,-480.0,0.00018081,2]
[382523874,1756656663360,-485.77,0.00018081,2]
[382523875,1756656663370,-480.0,0.00018081,2]
[382523876,1756656663379,-666.49,0.00018081,2]
[382523877,1756656663389,-777.94,0.00018081,2]
[382523878,1756656663399,-881.04,0.00018081,2]
[382523879,1756656663408,-480.0,0.00018081,2]
[382523880,1756656663418,-480.0,0.00018081,2]
[382523881,1756656663427,-814.08,0.00018081,2]
[382523882,1756656663437,-502.98,0.00018081,2]
[382523883,1756656663447,-480.0,0.00018081,2]
[382523885,1756656663457,-480.0,0.00018081,2]
[382523886,1756656663467,-482.1,0.00018081,2]
[382523888,1756656663477,-151.0,0.00018081,2]
[382523890,1756656663486,-151.0,0.00018081,2]
[382523892,1756656663496,-151.0,0.00018081,2]
[382523894,1756656663506,-151.0,0.00018081,2]
[382523896,1756656663516,-480.0,0.00018081,2]
[382523898,1756656663526,-838.12,0.00018081,2]
[382523900,1756656663536,-480.0,0.00018081,2]
[382523902,1756656663548,-151.0,0.00018081,2]
[382523904,1756656663558,-1080.46,0.00018081,2]
[382523906,1756656663568,-151.0,0.00018081,2]
[382523908,1756656663578,-1256.87,0.00018081,2]
[382523910,1756656663588,-151.0,0.00018081,2]
[382523912,1756656663598,-480.0,0.00018081,2]
[382523914,1756656663607,-572.89,0.00018081,2]
[382523916,1756656663620,-152.778142,0.00018081,2]
[382523918,1756656663630,-183.18149,0.00018081,2]
[382523920,1756656663640,-183.18149,0.00018081,2]
[382523922,1756656663651,-183.18149,0.00018081,2]
[382523924,1756656663661,-183.18149,0.00018081,2]
[382523926,1756656663671,-480.0,0.00018081,2]
[382523929,1756656663681,-674.47,0.00018081,2]
[382523931,1756656663691,-1257.69,0.00018081,2]
[382523932,1756656663702,-1563.2,0.00018081,2]
[382523935,1756656663712,-606.97,0.00018081,2]
[382523937,1756656663723,-480.0,0.00018081,2]
[382523939,1756656663733,-575.78,0.00018081,2]
[382523941,1756656663743,-480.0,0.00018081,2]
[382523943,1756656663753,-839.64,0.00018081,2]
[382523944,1756656663763,-480.0,0.00018081,2]
[382523946,1756656663773,-545.27,0.00018081,2]
[382523948,1756656663782,-480.0,0.00018081,2]
[382523950,1756656663792,-480.0,0.00018081,2]
[382523952,1756656663803,-480.0,0.00018081,2]
[382523955,1756656663812,-480.0,0.00018081,2]
[382523956,1756656663823,-480.0,0.00018081,2]
[382523958,1756656663832,-480.0,0.00018081,2]
[382523961,1756656663842,-669.78,0.00018081,2]
[382523963,1756656663852,-480.0,0.00018081,2]
[382523964,1756656663862,-652.78,0.00018081,2]
[382523966,1756656663873,-480.0,0.00018081,2]
[382523969,1756656663882,-158.27277284,0.00018082,2]
[382523971,1756656663892,-151.0,0.00018082,2]
[382523973,1756656663902,-153.012514,0.00018082,10]
[382523975,1756656663912,-151.0,0.00018084,2]
[382523977,1756656663922,-151.0,0.00018084,2]
[382523978,1756656663931,-151.0,0.00018084,2]
[382523980,1756656663941,-500.0,0.00018084,2]
[382523982,1756656663951,-500.0,0.00018084,2]
[382523991,1756656664025,-500.0,0.00018084,2]
[382523993,1756656664036,-151.0,0.00018084,2]
[382523995,1756656664045,-151.0,0.00018084,2]
[382523997,1756656664055,-151.0,0.00018084,2]
[382523999,1756656664064,-500.0,0.00018084,2]
[382524001,1756656664074,-151.0,0.00018084,2]
[382524003,1756656664084,-239.35076144,0.00018084,2]
[382524005,1756656664093,-151.0,0.00018084,2]
[382524007,1756656664104,-151.0,0.00018084,2]
[382524009,1756656664114,-500.0,0.00018084,2]
[382524011,1756656664124,-151.0,0.00018084,2]
[382524013,1756656664134,-500.0,0.00018084,2]
[382524015,1756656664143,-508.0,0.00018084,2]
[382524017,1756656664153,-151.0,0.00018084,2]
[382524019,1756656664162,-500.0,0.00018084,2]
[382524021,1756656664172,-151.0,0.00018084,2]
[382524023,1756656664181,-216.52043987,0.00018084,2]
[382524025,1756656664191,-151.0,0.00018085,2]
[382524027,1756656664201,-302.59980593,0.00018088,2]
[382524029,1756656664211,-480.0,0.00018088,2]
[382524031,1756656664220,-704.56,0.00018088,2]
[382524033,1756656664230,-590.93,0.00018088,2]
[382524035,1756656664239,-480.0,0.00018088,2]
[382524036,1756656664249,-528.92,0.00018088,2]
[382524039,1756656664259,-168.0,0.00018101,2]
[382524040,1756656664269,-290.70175368,0.00018112,2]
[382524042,1756656664279,-151.7571885,0.00018114,2]
[382524044,1756656664289,-151.0,0.0001812,2]
[382524046,1756656664298,-151.0,0.0001812,2]
[382524049,1756656664308,-151.0,0.0001812,2]
[382524051,1756656664318,-256.02681,0.0001812,2]
[382524053,1756656664327,-219.579642,0.0001812,2]
[382524055,1756656664337,-9324.39,0.0001812,2]
[382524057,1756656664347,-1728.82200232,0.0001812,2]
[382524063,1756656664405,480.0,0.00017251,2]
[382524068,1756656664443,480.0,0.00017251,2]
[382524093,1756656664683,623.84,0.00017251,2]
[382524112,1756656664868,480.0,0.00017251,2]
[382524195,1756656665867,1439.14,0.00017251,2]
[382524196,1756656665914,480.0,0.00017251,2]
[382524211,1756656666184,480.0,0.00017251,2]
[382524220,1756656666258,480.0,0.00017251,2]
[382524264,1756656666705,480.0,0.00017251,2]
[382524269,1756656666752,480.0,0.00017251,2]
[382524298,1756656667045,480.0,0.00017251,2]
[382524303,1756656667080,480.0,0.00017251,2]
[382524339,1756656667451,480.0,0.00017251,2]
[382524344,1756656667489,480.0,0.00017251,2]
[382524366,1756656667732,480.0,0.0001725,2]
[382524368,1756656667993,480.0,0.00017251,2]
[382524369,1756656668116,480.0,0.00017251,2]
[382524370,1756656668474,480.0,0.00017251,2]
[382524371,1756656668509,480.0,0.0001725,2]
[382524374,1756656668774,480.0,0.00017251,2]
[382524375,1756656668809,480.0,0.0001725,2]
[382524376,1756656668940,480.0,0.00017251,2]
[382524377,1756656668976,480.0,0.00017251,2]
[382524378,1756656669188,480.0,0.00017251,2]
[382524379,1756656669446,480.0,0.00017251,2]
[382524395,1756656669771,480.0,0.00017251,2]
[382524431,1756656670111,480.0,0.00017251,2]
[382524458,1756656670447,480.0,0.00017251,2]
[382524459,1756656670506,480.0,0.00017251,2]
[382524460,1756656670602,480.0,0.00017251,2]
[382524461,1756656670762,618.55,0.0001725,2]
[382524466,1756656672429,2828.67,0.00017251,2]
[382524467,1756656672648,578.06,0.00017251,2]
[382524484,1756656673690,480.0,0.00017251,2]
[382524485,1756656674536,634.34,0.00017251,2]
[382524486,1756656676338,480.0,0.00017251,2]
[382524487,1756656676414,480.0,0.00017251,2]
[382524488,1756656677720,1980.99,0.0001725,2]
[382524489,1756656677841,480.0,0.00017251,2]
[382524490,1756656678915,480.0,0.00017251,2]
[382524491,1756656679126,480.0,0.00017251,2]
[382524492,1756656681226,221.66872378,0.00017152,2]
[382524493,1756656681632,2359.78,0.00017251,2]
[382524494,1756656681947,709.28,0.00017251,2]
[382524495,1756656682193,480.0,0.00017251,2]
[382524496,1756656682926,502.69,0.00017251,2]
[382524497,1756656683584,480.0,0.00017251,2]
[382524498,1756656685444,714.17,0.00017251,2]
[382524499,1756656685618,1185.22,0.00017251,2]
[382524500,1756656686311,480.0,0.00017251,2]
[382524501,1756656687100,480.0,0.00017251,2]
[382524502,1756656687198,1179.18,0.0001725,2]
[382524503,1756656687768,560.09,0.00017251,2]
[382524504,1756656688614,2437.59,0.00017251,2]
[382524505,1756656688892,389.61774307,0.00017251,2]
[382524506,1756656689253,1821.95,0.00017251,2]
[382524507,1756656690156,780.21,0.00017251,2]
[382524508,1756656691602,480.0,0.00017251,2]
[382524509,1756656692599,910.47,0.00017251,2]
[382524510,1756656693247,480.0,0.00017251,2]
[382524511,1756656693424,519.02,0.00017251,2]
[382524512,1756656695002,480.0,0.00017251,2]
[382524513,1756656695133,513.98,0.0001725,2]
[382524514,1756656698971,1334.17,0.00017251,2]
[382524515,1756656700954,480.0,0.00017251,2]
[382524516,1756656701811,480.0,0.00017251,2]
[382524517,1756656703249,372.78034639,0.00017251,2]
[382524518,1756656703507,649.59,0.00017251,2]
[382524519,1756656704317,480.0,0.00017251,2]
[382524520,1756656705325,1008.4,0.00017251,2]
[382524521,1756656706184,1718.29,0.00017251,2]
[382524522,1756656706247,990.99,0.00017251,2]
[382524523,1756656706403,1284.82,0.00017251,2]
[382524524,1756656709829,480.0,0.00017251,2]
[382524525,1756656712057,513.17890549,0.00017251,2]
[382524526,1756656715621,480.0,0.00017251,2]
[382524527,1756656717300,480.0,0.00017251,2]
[382524528,1756656717789,480.0,0.00017251,2]
[382524529,1756656717828,1000.0,0.00016339,2]
[382524530,1756656717873,760.78,0.00017251,2]
[382524531,1756656718023,838.54,0.00017251,2]
[382524532,1756656719562,128293.4196281,0.00017152,2]
[382524533,1756656722086,480.0,0.0001725,2]
[382524534,1756656722633,300.0,0.00017251,2]
[382524535,1756656723367,658.89,0.0001725,2]
[382524536,1756656726743,177.0,0.00017251,2]
[382524537,1756656726828,650.64,0.00017251,2]
[382524538,1756656727569,1101.83,0.00017251,2]
[382524539,1756656728064,514.76,0.00017251,2]
[382524540,1756656729769,289.0526333,0.00016339,2]
[382524541,1756656731798,618.41,0.00017251,2]
[382524542,1756656733428,480.0,0.00017251,2]
[382524543,1756656734981,4931.24,0.00017251,2]
[382524544,1756656737018,534.94,0.00017251,2]
[382524545,1756656738539,480.0,0.00017251,2]
[382524546,1756656739067,480.0,0.00017251,2]
[382524547,1756656742297,1312.77,0.0001725,2]
[382524548,1756656745557,1194.38,0.00017251,2]
[382524549,1756656748437,480.0,0.00017251,2]
[382524550,1756656749516,738.0,0.00017251,2]
[382524551,1756656750511,987.4,0.00017251,2]
[382524552,1756656750719,480.0,0.00017251,2]
[382524553,1756656751894,158.16193431,0.00017152,2]
[382524554,1756656752511,750.06,0.0001725,2]
[382524555,1756656753690,779.37,0.00017251,2]
[382524556,1756656755040,480.0,0.00017251,2]
[382524557,1756656757406,1150.03,0.00017251,2]
[382524558,1756656759461,624.47,0.00017251,2]
[382524559,1756656761299,480.0,0.00017251,2]
[382524560,1756656764223,480.0,0.00017251,2]
[382524561,1756656765459,480.0,0.00017251,2]
[382524562,1756656765800,6847.18,0.00017251,2]
[382524563,1756656767546,847.64,0.00017251,2]
[382524564,1756656767908,774.06,0.00017251,2]
[382524565,1756656769804,752.01,0.00017251,2]
[382524566,1756656773835,480.0,0.00017251,2]
[382524567,1756656778575,557.26,0.00017251,2]
[382524568,1756656778799,480.0,0.00017251,2]
[382524569,1756656780692,1275.3,0.00017251,2]
[382524570,1756656780731,1002.66,0.00017251,2]
[382524571,1756656780924,480.0,0.00017251,2]
[382524572,1756656781005,500.0,0.00025,30]
[382524573,1756656781413,522.97679525,0.00025,30]
[382524574,1756656782597,3075.14,0.00017251,2]
[382524575,1756656783487,480.0,0.00017251,2]
[382524576,1756656784711,1013.7,0.00017251,2]
[382524577,1756656785212,300.0,0.00017251,2]
[382524578,1756656785473,11587.0957781,0.00016312,2]
[382524579,1756656786051,957.82,0.00017251,2]
[382524580,1756656786151,480.0,0.00017251,2]
[382524581,1756656786391,1003.91,0.00017251,2]
[382524582,1756656790434,1495.66,0.00017251,2]
[382524583,1756656790946,1390.85,0.00017251,2]
[382524584,1756656791680,180.25310697,0.00017251,2]
[382524585,1756656794181,1353.64,0.00017251,2]
[382524586,1756656797207,802.95,0.00017251,2]
[382524587,1756656799678,499.35843453,0.00017251,2]
[382524588,1756656800206,480.0,0.00017251,2]
[382524589,1756656803238,480.0,0.00017251,2]
[382524590,1756656804272,804.38,0.00017251,2]
[382524591,1756656805390,1149.94,0.00017251,2]
[382524592,1756656807375,509.65,0.00017251,2]
[382524593,1756656809025,480.0,0.00017251,2]
[382524594,1756656809113,480.0,0.00017251,2]
[382524595,1756656810672,489.0,0.0001684,2]
[382524596,1756656813116,154.4772828,0.0001723,14]
[382524597,1756656813872,480.0,0.00017251,2]
[382524598,1756656813971,480.0,0.00017251,2]
[382524599,1756656815132,8919.11,0.00017251,2]
[382524600,1756656815325,1227.24,0.00017251,2]
[382524601,1756656816611,480.0,0.00017251,2]
[382524602,1756656816651,528.14,0.00017251,2]
[382524603,1756656819099,489.0,0.00016904,2]
[382524604,1756656821333,480.0,0.00017251,2]
[382524605,1756656821969,596.76,0.00017251,2]
[382524606,1756656824194,937.54,0.00017251,2]
[382524607,1756656825357,1105.03,0.00017251,2]
[382524608,1756656828751,489.0,0.00017055,2]
[382524609,1756656830454,480.0,0.00017251,2]
[382524610,1756656832233,1615.2,0.00017251,2]
[382524611,1756656833697,1459.67,0.00017251,2]
[382524612,1756656835394,1455.22,0.00017251,2]
[382524613,1756656836224,919.31,0.00017251,2]
[382524614,1756656837065,480.0,0.00017251,2]
[382524615,1756656840278,480.0,0.00017251,2]
[382524616,1756656842543,4866.67,0.00017251,2]
[382524617,1756656846214,1278.67,0.0001725,2]
[382524618,1756656846365,1975.43,0.00017251,2]
[382524619,1756656846736,1828.22,0.00017251,2]
[382524620,1756656849416,1595.31,0.00017251,2]
[382524621,1756656850585,480.0,0.00017251,2]
[382524622,1756656851345,480.0,0.00017251,2]
[382524623,1756656853722,480.0,0.00017251,2]
[382524624,1756656854367,514.53,0.00017251,2]
[382524626,1756656854964,876.26,0.00017251,2]
[382524627,1756656855346,480.0,0.00017251,2]
[382524628,1756656856164,480.0,0.00017251,2]
[382524629,1756656856995,480.0,0.00017251,2]
[382524630,1756656858893,1062.59,0.00017251,2]
[382524631,1756656859894,480.0,0.0001725,2]
[382524632,1756656860611,442.33572238,0.00017251,2]
[382524633,1756656860642,2268.47427762,0.00017251,2]
[382524634,1756656861035,1282.12,0.00017251,2]
[382524635,1756656861678,524.21,0.00017251,2]
[382524636,1756656865996,589.55,0.00017251,2]
[382524637,1756656867722,1848.9,0.00017251,2]
[382524638,1756656869472,2403.94,0.00017251,2]
[382524639,1756656873854,480.0,0.00017251,2]
[382524640,1756656874558,480.0,0.00017251,2]
[382524641,1756656876746,480.0,0.00017251,2]
[382524642,1756656877768,480.0,0.00017251,2]
[382524643,1756656878667,480.0,0.00017251,2]
[382524644,1756656879115,480.0,0.00017251,2]
[382524645,1756656880962,747.7,0.00017251,2]
[382524646,1756656881528,1134.89,0.00017251,2]
[382524647,1756656881648,420.0,0.00017251,2]
[382524648,1756656886378,480.0,0.00017251,2]
[382524649,1756656890435,1283.92,0.00017251,2]
[382524650,1756656892578,2336.02,0.00017251,2]
[382524651,1756656894150,707.96,0.00017251,2]
[382524652,1756656894929,559.47,0.00017251,2]
[382524653,1756656896361,913.47,0.0001725,2]
[382524654,1756656897810,1196.47,0.00017251,2]
[382524656,1756656901502,949.69,0.00017251,2]
[382524657,1756656905050,1200.0,0.00017251,2]
[382524658,1756656905120,480.0,0.00017251,2]
[382524659,1756656905222,535.16,0.00017251,2]
[382524660,1756656907594,480.0,0.00017251,2]
[382524661,1756656907675,480.0,0.00017251,2]
[382524662,1756656908228,2818.1,0.00017251,2]
[382524663,1756656908418,480.0,0.00017251,2]
[382524664,1756656909774,480.0,0.00017251,2]
[382524665,1756656910556,480.0,0.00017251,2]
[382524666,1756656913939,480.0,0.00017251,2]
[382524667,1756656917197,6873.12,0.00017251,2]
[382524668,1756656917892,729.08,0.00017251,2]
[382524669,1756656918852,480.0,0.00017251,2]
[382524670,1756656919813,480.0,0.00017251,2]
[382524671,1756656922040,614.19,0.00017251,2]
[382524672,1756656926436,1055.92,0.00017251,2]
[382524673,1756656929147,623.53,0.00017251,2]
[382524674,1756656932668,1135.84,0.00017251,2]
[382524675,1756656932775,485.08,0.00017251,2]
[382524676,1756656933298,440.13314868,0.00017251,2]
[382524677,1756656935348,512.65,0.00017251,2]
[382524678,1756656938031,480.0,0.00017251,2]
[382524679,1756656939845,1144.62,0.00017251,2]
[382524680,1756656941828,1173.26,0.00017251,2]
[382524681,1756656942274,480.0,0.00017251,2]
[382524682,1756656943943,512.83,0.00017251,2]
[382524683,1756656949846,687.47,0.00017251,2]
[382524684,1756656950664,480.0,0.00017251,2]
[382524685,1756656950795,656.16,0.00017251,2]
[382524686,1756656951052,7188.31,0.00017251,2]
[382524687,1756656951880,645.66,0.00017251,2]
[382524688,1756656952081,480.0,0.00017251,2]
[382524689,1756656952299,480.0,0.00017251,2]
[382524690,1756656952629,525.69,0.00017251,2]
[382524691,1756656952705,1231.29,0.00017251,2]
[382524692,1756656958402,846.29,0.00017251,2]
[382524693,1756656959119,1306.32,0.0001725,2]
[382524694,1756656959322,480.0,0.00017251,2]
[382524695,1756656962580,300.0,0.00017251,2]
[382524696,1756656966431,480.0,0.00017251,2]
[382524697,1756656967906,1016.81,0.00017251,2]
[382524699,1756656972617,3329.44,0.00017251,2]
[382524700,1756656973241,480.0,0.00017251,2]
[382524701,1756656974204,480.0,0.00017251,2]
[382524702,1756656974263,480.0,0.00017251,2]
[382524703,1756656976265,589.1,0.00017251,2]
[382524704,1756656976325,854.71,0.00017251,2]
[382524705,1756656977471,657.26,0.0001725,2]
[382524706,1756656978067,228.70277096,0.00016734,2]
[382524707,1756656978271,480.0,0.00017251,2]
[382524708,1756656979596,638.82,0.0001725,2]
[382524709,1756656981925,480.0,0.00017251,2]
[382524710,1756656982981,598.54,0.00017251,2]
[382524711,1756656983837,452.01923232,0.00017251,2]
[382524712,1756656984069,480.0,0.00017251,2]
[382524713,1756656988046,480.0,0.00017251,2]
[382524714,1756656990725,480.0,0.00017251,2]
[382524715,1756656990986,480.0,0.00017251,2]
[382524716,1756656991025,1364.92,0.00017251,2]
[382524717,1756656991057,480.0,0.00017251,2]
[382524718,1756656992833,1439.97,0.00017251,2]
[382524719,1756656994923,480.0,0.00017251,2]
[382524720,1756656995391,881.01,0.00017251,2]
[382524721,1756656996727,1931.1,0.00017251,2]
[382524722,1756656997517,480.0,0.00017251,2]
[382524723,1756656998613,480.0,0.00017251,2]
[382524724,1756656998750,894.64,0.00017251,2]
[382524725,1756656999731,1420.98,0.00017251,2]
[382524726,1756657000253,580.95,0.00017251,2]
[382524727,1756657002624,629.68,0.00017251,2]
[382524728,1756657002999,594.26,0.00017251,2]
[382524729,1756657004725,1528.84,0.00017251,2]
[382524730,1756657004837,480.0,0.0001725,2]
[382524731,1756657009039,480.0,0.0001725,2]
[382524732,1756657009793,480.0,0.00017251,2]
[382524733,1756657010110,623.27,0.00017251,2]
[382524734,1756657011459,480.0,0.00017251,2]
[382524735,1756657012891,503.41,0.00017251,2]
[382524736,1756657012932,480.0,0.00017251,2]
[382524737,1756657013976,758.72,0.00017251,2]
[382524738,1756657015759,1771.87,0.00017251,2]
[382524739,1756657016850,480.0,0.00017251,2]
[382524740,1756657018561,1268.77,0.00017251,2]
[382524741,1756657019000,1114.23,0.00017251,2]
[382524742,1756657020992,480.0,0.00017251,2]
[382524743,1756657021920,480.0,0.00017251,2]
[382524744,1756657022497,300.0,0.00017251,2]
[382524745,1756657024038,1087.4,0.00017251,2]
[382524746,1756657024287,480.0,0.00017251,2]
[382524747,1756657024320,480.37,0.00017251,2]
[382524748,1756657028435,400.47754356,0.00016,3]
[382524749,1756657029041,480.0,0.0001725,2]
[382524750,1756657029105,1471.83,0.00017251,2]
[382524751,1756657029138,363.50489187,0.00017251,2]
[382524752,1756657030246,480.0,0.0001725,2]
[382524753,1756657031197,480.0,0.00017251,2]
[382524754,1756657032322,1151.91,0.00017251,2]
[382524755,1756657034019,480.0,0.00017251,2]
[382524756,1756657034321,480.0,0.00017251,2]
[382524757,1756657034906,1274.22,0.00017251,2]
[382524758,1756657034965,368.80140966,0.00017251,2]
[382524759,1756657036035,971.46,0.00017251,2]
[382524760,1756657036673,1406.02,0.00017251,2]
[382524761,1756657039176,480.0,0.00017251,2]
[382524762,1756657039673,669.77,0.00017251,2]
[382524763,1756657040191,481.9284001,0.00017251,2]
[382524764,1756657040653,716.87,0.00017251,2]
[382524765,1756657043543,1478.03,0.00017251,2]
[382524766,1756657045890,832.07,0.00017251,2]
[382524767,1756657046758,593.06,0.00017251,2]
[382524768,1756657051231,480.0,0.00017251,2]
[382524769,1756657053437,2841.58,0.00017251,2]
[382524770,1756657053764,480.0,0.00017251,2]
[382524771,1756657055348,480.0,0.00017251,2]
[382524772,1756657057564,1110.51,0.00017251,2]
[382524773,1756657058520,1573.31,0.00017251,2]
[382524774,1756657058558,357.35753866,0.00017251,2]
[382524775,1756657058603,480.0,0.0001725,2]
[382524776,1756657059427,1200.53,0.00017251,2]
[382524777,1756657060830,480.0,0.0001725,2]
[382524778,1756657062706,830.12,0.0001725,2]
[382524779,1756657063044,1175.21,0.00017251,2]
[382524780,1756657063591,480.0,0.0001725,2]
[382524781,1756657067689,8936.0,0.00017251,2]
[382524782,1756657067926,483.81,0.00017251,2]
[382524783,1756657067963,518.43,0.00017251,2]
[382524784,1756657071703,480.0,0.00017251,2]
[382524785,1756657074207,692.49,0.00017251,2]
[382524786,1756657074738,552.3,0.00017251,2]
[382524787,1756657074798,713.05,0.00017251,2]
[382524788,1756657075808,1116.31,0.0001725,2]
[382524789,1756657078551,5174.06,0.00017251,2]
[382524790,1756657079835,4907.23,0.00017251,2]
[382524791,1756657083153,480.0,0.00017251,2]
[382524792,1756657083758,480.0,0.00017251,2]
[382524793,1756657085088,598.64,0.00017251,2]
[382524794,1756657087895,745.27,0.0001725,2]
[382524795,1756657090059,480.0,0.00017251,2]
[382524796,1756657090131,480.0,0.0001725,2]
[382524797,1756657093087,2365.74,0.00017251,2]
[382524798,1756657094146,480.0,0.00017251,2]
[382524799,1756657096658,480.0,0.00017251,2]
[382524800,1756657098454,1834.24,0.00017251,2]
[382524801,1756657099127,480.0,0.00017251,2]
[382524802,1756657100324,801.62,0.00017251,2]
[382524803,1756657100633,480.0,0.00017251,2]
[382524804,1756657101743,480.0,0.00017251,2]
[382524805,1756657102687,480.0,0.00017251,2]
[382524806,1756657105763,919.08,0.00017251,2]
[382524807,1756657111366,1144.71,0.00017251,2]
[382524808,1756657111761,480.0,0.0001725,2]
[382524809,1756657114154,480.0,0.00017251,2]
[382524810,1756657114199,1520.31,0.00017251,2]
[382524811,1756657115237,480.0,0.00017251,2]
[382524812,1756657115882,1206.44,0.00017251,2]
[382524813,1756657117125,1144.73,0.00017251,2]
[382524814,1756657117864,692.35,0.00017251,2]
[382524815,1756657118029,2379.44,0.00017251,2]
[382524816,1756657121071,356.28360567,0.00017152,2]
[382524817,1756657122073,483.99669531,0.00017251,2]
[382524818,1756657122766,561.9,0.00017251,2]
[382524819,1756657122961,268.55060938,0.00017251,2]
[382524820,1756657123010,1240.36,0.00017251,2]
[382524821,1756657125751,480.0,0.00017251,2]
[382524822,1756657125804,480.0,0.00017251,2]